bitfinex-derivatives/quotes_BTCF0:USTF0_20241023
["timestamp","ask_amount","ask_price","bid_price","bid_amount"]
[1729674813530,0.3608,66346.0,66345.0,0.645405]
[1729674813931,0.075391,66358.0,66345.0,1.458565]
[1729674814131,0.3608,66360.0,66352.0,0.17]
[1729674814447,0.3608,66360.0,66345.0,0.761]
[1729674814448,0.3608,66360.0,66359.0,0.075389]
[1729674814634,0.3608,66360.0,66359.0,0.075589]
[1729674814954,0.3608,66360.0,66332.0,0.04495441]
[1729674814955,0.45208,66359.0,66332.0,0.04495441]
[1729674815132,0.45208,66359.0,66329.0,0.361]
[1729674815133,0.245411,66339.0,66329.0,0.0002]
[1729674815445,0.245411,66339.0,66329.0,0.075623]
[1729674815742,0.075411,66339.0,66330.0,0.075421]
[1729674815935,0.075411,66339.0,66329.0,0.0002]
[1729674816242,0.335411,66339.0,66329.0,0.0002]
[1729674816643,0.335411,66339.0,66333.0,0.075418]
[1729674817543,0.335411,66339.0,66329.0,0.0002]
[1729674817744,0.335411,66339.0,66333.0,0.075418]
[1729674817944,0.3608,66340.0,66338.0,0.075612]
[1729674818239,0.3608,66340.0,66339.0,0.075611]
[1729674821141,0.00192,66359.0,66339.0,1.3124]
[1729674821444,0.075393,66355.0,66353.0,0.075395]
[1729674821837,0.075394,66354.0,66353.0,0.075395]
[1729674822040,0.075394,66354.0,66346.0,0.19472051]
[1729674822041,0.56297931,66354.0,66346.0,0.19472051]
[1729674822241,0.18370223,66353.0,66351.0,0.075398]
[1729674822439,0.12678531,66352.0,66351.0,0.075398]
[1729674823049,0.24100889,66352.0,66351.0,0.075398]
[1729674823244,0.12678531,66352.0,66351.0,0.550798]
[1729674823441,0.12678531,66352.0,66351.0,1.002918]
[1729674823948,0.16225656,66360.0,66352.0,0.45212]
[1729674824151,0.16225656,66362.0,66359.0,0.3608]
[1729674824345,0.16225656,66362.0,66359.0,0.7218]
[1729674824535,0.16225656,66362.0,66361.0,0.335586]
[1729674824734,0.26,66381.0,66368.0,0.075378]
[1729674824735,0.16225656,66369.0,66368.0,0.075378]
[1729674824931,0.16225656,66369.0,66361.0,0.787666]
[1729674824932,0.16225656,66371.0,66365.0,0.3608]
[1729674825141,0.16225656,66371.0,66370.0,0.075376]
[1729674825350,0.16225656,66372.0,66371.0,0.075375]
[1729674825648,0.05407342,66376.0,66375.0,0.075371]
[1729674826037,0.16205542,66376.0,66375.0,0.075571]
[1729674826551,0.26,66377.0,66375.0,0.0002]
[1729674826757,0.05406593,66376.0,66375.0,0.075571]
[1729674827050,0.1619182,66377.0,66376.0,0.075369]
[1729674827349,0.1619182,66388.0,66385.0,0.075359]
[1729674827538,0.075355,66389.0,66385.0,0.075359]
[1729674827738,0.075355,66389.0,66387.0,0.0002]
[1729674827938,0.075355,66389.0,66388.0,0.0002]
[1729674828235,0.335355,66389.0,66388.0,0.0002]
[1729674829049,0.04626404,66389.0,66388.0,0.0002]
[1729674829243,0.04626404,66389.0,66388.0,0.075556]
[1729674830053,0.698071,66393.0,66391.0,0.075352]
[1729674830353,0.696151,66393.0,66392.0,0.0002]
[1729674832951,0.075367,66379.0,66377.0,0.075368]
[1729674833139,0.075367,66379.0,66376.0,0.075569]
[1729674833140,0.075366,66379.0,66376.0,0.075569]
[1729674833342,0.075368,66377.0,66376.0,0.0002]
[1729674836142,0.2335,66377.0,66366.0,0.00225988]
[1729674836349,0.07538,66367.0,66366.0,0.00225988]
[1729674836952,0.16863072,66367.0,66353.0,0.15214942]
[1729674837154,0.3608,66361.0,66357.0,0.07539]
[1729674837348,0.16855678,66360.0,66353.0,0.15214942]
[1729674837558,0.075398,66351.0,66349.0,0.0754]
[1729674837848,0.075402,66348.0,66347.0,0.075402]
[1729674838054,0.1435957,66348.0,66347.0,0.075402]
[1729674838252,0.11447671,66348.0,66347.0,0.075402]
[1729674838643,0.18987771,66348.0,66347.0,0.075402]
[1729674838849,0.11447671,66348.0,66347.0,0.075402]
[1729674839052,0.18987771,66348.0,66347.0,0.075402]
[1729674839253,0.11447671,66348.0,66347.0,0.075402]
[1729674840358,0.11447671,66348.0,66347.0,0.527562]
[1729674841047,0.1134767,66348.0,66347.0,0.877562]
[1729674841266,0.05408007,66363.0,66362.0,0.075385]
[1729674841755,0.05408007,66363.0,66362.0,0.075585]
[1729674841957,0.05408007,66363.0,66362.0,0.425585]
[1729674842956,0.05408007,66363.0,66362.0,0.877665]
[1729674843167,0.05408007,66366.0,66362.0,0.877665]
[1729674843363,0.05408007,66376.0,66365.0,0.6208]
[1729674843661,0.05408007,66376.0,66375.0,0.335371]
[1729674843859,0.05408007,66376.0,66367.0,0.07538]
[1729674844163,0.05408007,66376.0,66375.0,0.075371]
[1729674844368,0.05408007,66376.0,66375.0,0.075571]
[1729674845165,0.3608,66377.0,66376.0,0.075369]
[1729674845554,0.3608,66377.0,66376.0,0.075569]
[1729674846160,0.2288,66387.0,66386.0,0.075358]
[1729674846358,0.3608,66388.0,66378.0,0.26]
[1729674846559,0.3608,66388.0,66387.0,0.075357]
[1729674847359,0.3608,66388.0,66387.0,0.075557]
[1729674849554,0.3608,66388.0,66387.0,0.12051568]
[1729674849971,0.436156,66388.0,66387.0,0.0002]
[1729674850353,0.075357,66387.0,66386.0,0.0002]
[1729674851162,0.26,66384.0,66379.0,0.04495958]
[1729674851375,0.436164,66381.0,66380.0,0.044999]
[1729674851561,0.436164,66381.0,66376.0,0.06006351]
[1729674851562,0.3608,66381.0,66379.0,0.044999]
[1729674851752,0.075366,66379.0,66378.0,0.044999]
[1729674851957,0.075366,66379.0,66376.0,0.075569]
[1729674852169,0.075368,66378.0,66376.0,0.075569]
[1729674852674,0.075368,66377.0,66376.0,0.075569]
[1729674852865,0.075368,66377.0,66376.0,0.0002]
[1729674853568,0.26,66379.0,66375.0,0.0002]
[1729674853774,0.075369,66376.0,66365.0,0.0002]
[1729674854080,0.075381,66366.0,66365.0,0.0002]
[1729674854960,0.075381,66366.0,66365.0,0.075582]
[1729674855260,0.075381,66366.0,66365.0,0.0002]
[1729674856277,0.075381,66366.0,66365.0,0.075582]
[1729674856974,0.075381,66366.0,66365.0,0.0002]
[1729674857163,0.335381,66366.0,66365.0,0.0002]
[1729674857364,0.3645094,66366.0,66362.0,0.0002]
[1729674857676,0.436184,66363.0,66362.0,0.0002]
[1729674857970,0.436184,66363.0,66353.0,0.075395]
[1729674857971,0.46531329,66363.0,66353.0,0.075395]
[1729674858173,0.075399,66351.0,66348.0,0.35]
[1729674858374,0.075399,66351.0,66350.0,0.075399]
[1729674859668,0.436194,66354.0,66353.0,0.075395]
[1729674859869,0.075399,66351.0,66349.0,0.0754]
[1729674860167,0.0660588,66350.0,66349.0,0.0754]
[1729674860970,0.02912982,66350.0,66349.0,0.0754]
[1729674861272,0.14145806,66350.0,66349.0,0.0754]
[1729674861869,0.075401,66348.0,66347.0,0.425401]
[1729674862079,0.10453082,66348.0,66347.0,0.425401]
[1729674862781,0.10453225,66348.0,66347.0,0.075401]
[1729674863666,0.14146308,66348.0,66347.0,0.075401]
[1729674864271,0.10453225,66348.0,66347.0,0.075401]
[1729674864471,0.14146309,66348.0,66347.0,0.075401]
[1729674865773,0.06606209,66348.0,66347.0,0.075401]
[1729674866672,0.14146309,66348.0,66347.0,0.075401]
[1729674866870,0.42686209,66348.0,66343.0,0.35]
[1729674867070,0.42686209,66348.0,66339.0,0.0002]
[1729674867071,0.07541,66340.0,66339.0,0.0002]
[1729674867372,0.69621,66340.0,66339.0,0.0002]
[1729674867874,0.43621,66340.0,66339.0,0.0002]
[1729674869276,0.69621,66340.0,66339.0,0.0002]
[1729674870070,0.075416,66335.0,66334.0,0.00226043]
[1729674870479,0.335416,66335.0,66334.0,0.00226043]
[1729674871181,0.075422,66330.0,66329.0,0.0002]
[1729674871480,0.696222,66330.0,66329.0,0.0002]
[1729674873573,0.075427,66325.0,66324.0,0.0002]
[1729674874378,0.335427,66325.0,66324.0,0.0002]
[1729674874884,0.335427,66325.0,66316.0,0.075438]
[1729674874885,0.075437,66317.0,66316.0,0.075438]
[1729674875074,0.03768772,66317.0,66316.0,0.075438]
[1729674876183,0.03868772,66317.0,66316.0,0.081438]
[1729674876389,0.03868772,66317.0,66316.0,0.006]
[1729674876571,0.07544,66314.0,66306.0,0.00226193]
[1729674876771,0.45336,66317.0,66306.0,0.00226193]
[1729674876772,0.3608,66307.0,66306.0,0.00226193]
[1729674877075,0.436248,66307.0,66306.0,0.00226193]
[1729674877272,0.436248,66307.0,66300.0,0.06273741]
[1729674877273,0.075449,66306.0,66300.0,0.01773841]
[1729674877573,0.3608,66301.0,66290.0,0.044999]
[1729674877775,0.3608,66301.0,66279.0,0.044999]
[1729674877776,0.6208,66291.0,66279.0,0.044999]
[1729674877987,0.3608,66281.0,66276.0,0.044999]
[1729674878284,0.075479,66280.0,66277.0,0.075482]
[1729674878667,0.075479,66280.0,66278.0,0.07548]
[1729674878991,0.3608,66281.0,66280.0,0.075479]
[1729674879188,0.3608,66281.0,66280.0,0.425479]
[1729674879481,0.3608,66291.0,66290.0,0.075467]
[1729674879874,0.3608,66291.0,66290.0,0.075667]
[1729674880386,0.436266,66291.0,66290.0,0.0002]
[1729674880587,0.3608,66291.0,66290.0,0.0002]
[1729674880788,0.3608,66291.0,66290.0,0.075667]
[1729674882788,0.075462,66295.0,66292.0,0.075465]
[1729674883081,0.075462,66295.0,66294.0,0.075663]
[1729674883781,0.075462,66295.0,66280.0,0.0002]
[1729674883782,0.075477,66281.0,66280.0,0.0002]
[1729674883980,0.696277,66281.0,66280.0,0.0002]
[1729674884386,0.436277,66281.0,66280.0,0.0002]
[1729674884978,0.3608,66281.0,66280.0,0.0002]
[1729674885183,0.436277,66281.0,66280.0,0.0002]
[1729674885488,0.075475,66283.0,66280.0,0.075679]
[1729674885992,0.075471,66287.0,66282.0,0.0002]
[1729674886387,0.3608,66288.0,66287.0,0.075471]
[1729674886890,0.3608,66288.0,66287.0,0.075671]
[1729674887082,0.3608,66288.0,66287.0,0.0002]
[1729674887284,0.436269,66288.0,66287.0,0.0002]
[1729674888376,0.606269,66288.0,66287.0,0.0002]
[1729674889495,1.058829,66288.0,66287.0,0.0002]
[1729674889877,1.058829,66288.0,66286.0,0.0002]
[1729674889878,0.45256,66287.0,66263.0,0.0447719]
[1729674890082,0.0755,66261.0,66260.0,0.0755]
[1729674890393,0.2455,66261.0,66260.0,0.0755]
[1729674890889,0.17,66261.0,66260.0,0.0755]
[1729674891089,0.17,66265.0,66262.0,0.075499]
[1729674891592,0.245496,66265.0,66264.0,0.0002]
[1729674892394,0.335496,66265.0,66264.0,0.0002]
[1729674893291,0.075496,66265.0,66264.0,0.0002]
[1729674893485,0.075496,66265.0,66264.0,0.075697]
[1729674893686,0.075496,66265.0,66264.0,0.0002]
[1729674895378,0.335496,66265.0,66264.0,0.0002]
[1729674897395,0.3520956,66265.0,66264.0,0.0002]
[1729674899295,0.075512,66251.0,66245.0,0.3608]
[1729674899495,0.3608,66254.0,66253.0,0.075509]
[1729674899998,0.3608,66254.0,66253.0,0.075709]
[1729674900303,0.889108,66254.0,66253.0,0.0002]
[1729674900787,0.3608,66254.0,66253.0,0.0002]
[1729674901291,1.4136,66254.0,66238.0,0.075526]
[1729674901494,1.4136,66254.0,66230.0,0.0447719]
[1729674901495,0.26,66239.0,66230.0,0.0447719]
[1729674901699,0.26,66239.0,66228.0,0.4631]
[1729674901700,0.26,66239.0,66238.0,0.075526]
[1729674901887,0.26,66239.0,66229.0,0.0447719]
[1729674901888,0.26,66243.0,66242.0,0.075521]
[1729674902090,0.3608,66246.0,66242.0,0.075521]
[1729674902292,0.26,66243.0,66242.0,0.0002]
[1729674902881,0.26,66243.0,66242.0,0.075722]
[1729674903287,0.3608,66246.0,66242.0,0.0002]
[1729674903588,0.3608,66246.0,66245.0,0.075718]
[1729674903794,0.6208,66246.0,66245.0,0.075718]
[1729674903982,0.6208,66246.0,66245.0,0.0002]
[1729674904183,0.6208,66246.0,66245.0,0.075718]
[1729674904692,0.26,66251.0,66245.0,0.361]
[1729674904890,0.26,66251.0,66250.0,0.075513]
[1729674905086,0.075511,66252.0,66250.0,0.10706651]
[1729674905289,0.3608,66254.0,66253.0,0.075509]
[1729674905497,0.3608,66254.0,66251.0,0.10686651]
[1729674905498,0.3608,66254.0,66251.0,0.07515001]
[1729674905699,0.3608,66254.0,66253.0,0.0002]
[1729674905995,0.6208,66254.0,66253.0,0.1824897]
[1729674906195,0.26,66254.0,66253.0,0.27203351]
[1729674906587,0.26,66259.0,66258.0,0.075504]
[1729674906782,0.26,66259.0,66258.0,0.1822847]
[1729674906997,0.6208,66259.0,66258.0,0.1069807]
[1729674907386,0.696302,66259.0,66258.0,0.1069807]
[1729674908109,0.436302,66259.0,66258.0,0.1069807]
[1729674908698,0.3608,66259.0,66258.0,0.1824847]
[1729674910295,0.26,66274.0,66258.0,0.1069807]
[1729674910593,0.26,66274.0,66266.0,0.07506019]
[1729674910796,0.26,66274.0,66265.0,0.075495]
[1729674911093,0.075494,66266.0,66264.0,0.075496]
[1729674911299,0.075494,66266.0,66265.0,0.10521673]
[1729674911696,0.37783126,66268.0,66265.0,0.10521673]
[1729674911898,0.37783126,66268.0,66266.0,0.10521673]
[1729674912105,0.436292,66268.0,66265.0,0.075495]
[1729674912288,0.3608,66268.0,66258.0,0.1702]
[1729674912594,0.075497,66264.0,66262.0,0.075499]
[1729674912790,0.3608,66268.0,66263.0,0.075497]
[1729674912995,0.3608,66268.0,66265.0,0.075495]
[1729674913192,0.02916774,66267.0,66258.0,0.1702]
[1729674913398,0.075496,66265.0,66258.0,0.1702]
[1729674913601,0.075496,66265.0,66263.0,0.075497]
[1729674913809,0.075496,66265.0,66259.0,0.075502]
[1729674913998,0.075496,66265.0,66264.0,0.075497]
[1729674914595,0.075497,66264.0,66262.0,0.075499]
[1729674914995,0.3608,66268.0,66265.0,0.075496]
[1729674915600,0.02916779,66267.0,66265.0,0.075496]
[1729674915801,0.3608,66268.0,66265.0,0.075496]
[1729674916194,0.436292,66268.0,66258.0,0.1702]
[1729674916400,0.436292,66268.0,66264.0,0.075496]
[1729674917008,0.3608,66268.0,66266.0,0.075494]
[1729674917600,0.436293,66268.0,66265.0,0.075496]
[1729674917798,0.3608,66268.0,66262.0,0.17]
[1729674918299,0.02916759,66267.0,66266.0,0.075494]
[1729674918500,0.02916759,66267.0,66266.0,0.245494]
[1729674919106,0.3608,66267.0,66261.0,0.17]
[1729674919309,0.075496,66265.0,66262.0,0.075498]
[1729674919606,0.3608,66267.0,66261.0,0.0755]
[1729674919607,0.14164136,66264.0,66261.0,0.0755]
[1729674919800,0.06614436,66263.0,66261.0,0.0755]
[1729674919997,0.06614436,66263.0,66262.0,0.075499]
[1729674920203,0.3608,66267.0,66262.0,0.23109228]
[1729674920416,0.3608,66267.0,66258.0,0.1702]
[1729674920417,0.075496,66265.0,66263.0,0.23109228]
[1729674920602,0.075496,66265.0,66264.0,0.10550463]
[1729674920807,0.37766839,66267.0,66264.0,0.10550463]
[1729674921109,0.45316239,66267.0,66265.0,0.10550463]
[1729674921310,0.37766839,66267.0,66266.0,0.10550463]
[1729674921702,0.37766839,66267.0,66266.0,0.18099863]
[1729674922110,0.3608,66267.0,66266.0,0.35099863]
[1729674923302,0.13274061,66268.0,66267.0,0.075493]
[1729674923515,0.13274061,66268.0,66267.0,0.41072502]
[1729674923812,0.13274061,66268.0,66267.0,0.90265347]
[1729674923813,0.12554061,66268.0,66267.0,0.90265347]
[1729674924014,0.12554061,66268.0,66267.0,1.14725347]
[1729674924211,0.12554061,66268.0,66267.0,0.69453347]
[1729674924601,0.12554061,66268.0,66267.0,1.25263081]
[1729674924914,0.12554061,66268.0,66267.0,0.79991102]
[1729674925115,0.12554061,66268.0,66267.0,1.10771671]
[1729674925309,0.12554061,66268.0,66267.0,0.54961916]
[1729674925815,0.12554061,66268.0,66267.0,0.65499671]
[1729674926109,6.1e-07,66268.0,66267.0,1.96313916]
[1729674926317,6.1e-07,66268.0,66267.0,2.10904306]
[1729674926707,6.1e-07,66268.0,66267.0,2.45904306]
[1729674927317,6.1e-07,66268.0,66267.0,2.083613]
[1729674927720,0.3608,66294.0,66292.0,0.075464]
[1729674928015,0.19915693,66293.0,66292.0,0.075465]
[1729674928217,0.02915693,66293.0,66292.0,0.075465]
[1729674928804,0.02915563,66293.0,66292.0,0.075465]
[1729674929413,0.3608,66294.0,66291.0,0.17]
[1729674929603,0.3608,66294.0,66293.0,0.075464]
[1729674930306,0.01669181,66296.0,66295.0,0.075461]
[1729674930515,0.01669181,66296.0,66293.0,0.3608]
[1729674930516,0.5308,66302.0,66297.0,0.075459]
[1729674930703,0.02915411,66301.0,66298.0,0.075458]
[1729674930909,0.02915411,66300.0,66298.0,0.075458]
[1729674931208,0.02925635,66299.0,66298.0,0.075458]
[1729674931514,0.01665174,66302.0,66298.0,0.17]
[1729674931714,0.09178422,66309.0,66303.0,0.075452]
[1729674931915,0.09178422,66309.0,66304.0,0.075451]
[1729674932218,0.01633822,66309.0,66298.0,0.17]
[1729674932514,0.4279,66310.0,66303.0,0.075452]
[1729674932719,0.02929945,66308.0,66298.0,0.17]
[1729674933019,0.02929945,66308.0,66306.0,0.075449]
[1729674934016,0.02929945,66308.0,66306.0,0.245449]
[1729674934314,0.3608,66311.0,66306.0,0.075449]
[1729674934514,0.37783414,66311.0,66306.0,0.075449]
[1729674935117,0.37783414,66311.0,66307.0,0.075447]
[1729674935925,0.37783414,66311.0,66309.0,0.075445]
[1729674936512,0.3608,66311.0,66309.0,0.075445]
[1729674937113,0.3608,66311.0,66302.0,0.17]
[1729674937312,0.3608,66311.0,66310.0,0.075444]
[1729674938434,0.01665841,66315.0,66309.0,0.17]
[1729674938616,0.254,66320.0,66316.0,0.075438]
[1729674938927,0.254,66320.0,66318.0,0.075435]
[1729674939125,0.3608,66323.0,66321.0,0.075432]
[1729674939426,0.3608,66323.0,66322.0,0.17]
[1729674939727,0.3608,66323.0,66322.0,0.245431]
[1729674941021,0.25408487,66335.0,66326.0,0.075426]
[1729674941208,0.25408487,66335.0,66334.0,0.17]
[1729674941413,0.25408487,66335.0,66334.0,0.245417]
[1729674942321,0.3608,66341.0,66338.0,0.075412]
[1729674942522,0.25182,66354.0,66349.0,0.0754]
[1729674942719,0.2499,66354.0,66353.0,0.17]
[1729674942923,0.2523,66357.0,66356.0,0.075392]
[1729674943314,0.26925877,66357.0,66356.0,0.075392]
[1729674943523,0.3608,66358.0,66357.0,0.075391]
[1729674943729,0.3608,66358.0,66357.0,0.245391]
[1729674944420,0.3608,66358.0,66357.0,0.075391]
[1729674945027,0.3608,66358.0,66357.0,0.245391]
[1729674945618,0.3608,66364.0,66357.0,0.62208]
[1729674945814,0.17,66363.0,66362.0,0.075385]
[1729674946021,0.436183,66364.0,66362.0,0.075385]
[1729674946225,0.17,66363.0,66353.0,0.7108]
[1729674946532,0.3608,66356.0,66349.0,0.0754]
[1729674946828,0.0754,66349.0,66348.0,0.00226055]
[1729674947026,0.2454,66349.0,66348.0,0.00226055]
[1729674948331,0.0754,66349.0,66348.0,0.00226055]
[1729674948628,0.3608,66350.0,66348.0,0.00226055]
[1729674949017,0.49904,66355.0,66349.0,0.17]
[1729674949215,0.572394,66355.0,66351.0,0.075397]
[1729674949420,0.572394,66355.0,66348.0,0.00226055]
[1729674949421,0.497,66355.0,66353.0,0.075395]
[1729674949620,0.497,66355.0,66351.0,0.17]
[1729674949823,0.497,66355.0,66337.0,0.12344]
[1729674950022,0.075401,66348.0,66347.0,0.17]
[1729674950437,0.7216,66352.0,66347.0,0.17]
[1729674950636,0.075398,66351.0,66347.0,0.245402]
[1729674950824,0.7216,66352.0,66347.0,0.245402]
[1729674951023,0.7216,66352.0,66347.0,0.17]
[1729674951225,0.075401,66348.0,66347.0,0.17]
[1729674951634,0.45216,66348.0,66333.0,0.075418]
[1729674951832,0.075417,66334.0,66331.0,0.24542]
[1729674952028,0.3608,66338.0,66331.0,0.17]
[1729674952330,0.3608,66338.0,66337.0,0.245414]
[1729674953325,0.3608,66338.0,66337.0,0.075414]
[1729674954329,0.075416,66336.0,66334.0,0.075416]
[1729674955727,0.075416,66335.0,66334.0,0.075416]
[1729674956243,0.075417,66334.0,66330.0,0.075422]
[1729674956445,0.3608,66332.0,66327.0,0.075425]
[1729674956938,0.3608,66332.0,66326.0,0.00226105]
[1729674957144,0.3608,66332.0,66331.0,0.075421]
[1729674957439,0.075417,66334.0,66331.0,0.12015181]
[1729674957825,0.075417,66334.0,66332.0,0.04473081]
[1729674958041,0.075417,66334.0,66331.0,0.12015181]
[1729674958256,0.075417,66334.0,66331.0,0.075421]
[1729674958743,0.65152,66337.0,66331.0,0.075421]
[1729674959038,0.075419,66332.0,66331.0,0.075421]
[1729674959427,0.075419,66332.0,66331.0,0.13506209]
[1729674959632,0.65156,66337.0,66331.0,0.05994243]
[1729674959832,0.555014,66337.0,66333.0,0.05994243]
[1729674960028,0.4796,66337.0,66336.0,0.075415]
[1729674960241,0.4796,66337.0,66336.0,0.13535743]
[1729674960550,0.3608,66338.0,66337.0,0.075414]
[1729674961029,0.3608,66338.0,66337.0,0.245414]
[1729674961229,0.3608,66338.0,66337.0,0.4233849]
[1729674961430,0.3608,66338.0,66337.0,0.34883354]
[1729674961635,0.3608,66338.0,66337.0,0.43829517]
[1729674961835,0.3608,66338.0,66337.0,0.34883354]
[1729674962235,0.3608,66338.0,66337.0,0.43829517]
[1729674962530,0.2594,66346.0,66345.0,0.075405]
[1729674962840,0.334803,66346.0,66345.0,0.075405]
[1729674963342,0.436199,66351.0,66349.0,0.0754]
[1729674963531,0.075399,66350.0,66349.0,0.0754]
[1729674964539,0.3608,66351.0,66345.0,0.17]
[1729674964738,0.3608,66351.0,66347.0,0.075402]
[1729674964739,0.075402,66348.0,66347.0,0.075402]
[1729674965137,0.3608,66351.0,66350.0,0.075399]
[1729674966343,0.436198,66351.0,66350.0,0.075399]
[1729674966648,0.075414,66337.0,66336.0,0.436215]
[1729674966852,0.075419,66333.0,66332.0,0.075418]
[1729674967243,0.075419,66333.0,66332.0,0.425418]
[1729674967745,0.17,66337.0,66336.0,0.075414]
[1729674967746,0.075414,66337.0,66336.0,0.075414]
[1729674969151,0.2539,66340.0,66338.0,0.075411]
[1729674969454,0.3608,66341.0,66338.0,0.075411]
[1729674969455,0.3608,66341.0,66340.0,0.07541]
[1729674969847,0.3608,66341.0,66334.0,0.17]
[1729674970153,0.075414,66338.0,66337.0,0.075414]
[1729674971441,0.075414,66338.0,66326.0,0.07768705]
[1729674971442,0.17,66338.0,66326.0,0.07768705]
[1729674971650,0.245425,66327.0,66326.0,0.07768705]
[1729674971847,0.245425,66327.0,66326.0,0.00226105]
[1729674972362,0.62232,66327.0,66309.0,0.01926403]
[1729674972647,0.075442,66313.0,66310.0,0.57842154]
[1729674972840,0.3608,66317.0,66311.0,0.19444341]
[1729674973036,0.075436,66318.0,66312.0,0.19444341]
[1729674973241,0.075436,66318.0,66317.0,0.07516395]
[1729674973545,0.18922037,66322.0,66317.0,0.17938988]
[1729674973854,0.01922037,66322.0,66319.0,0.075434]
[1729674974151,0.3608,66325.0,66321.0,0.06011708]
[1729674974349,0.37996009,66325.0,66324.0,0.04508782]
[1729674975244,0.37996009,66325.0,66324.0,0.10520181]
[1729674975450,0.3608,66325.0,66324.0,0.29051582]
[1729674975645,0.3608,66325.0,66324.0,0.35062981]
[1729674975847,0.3608,66325.0,66324.0,0.29051582]
[1729674976351,0.436227,66325.0,66324.0,0.04508782]
[1729674978959,0.075429,66324.0,66323.0,0.07543]
[1729674979142,0.3608,66325.0,66324.0,0.075428]
[1729674982260,0.3608,66325.0,66324.0,0.329528]
[1729674983473,0.3608,66331.0,66324.0,0.2541]
[1729674983757,0.3608,66339.0,66330.0,0.245422]
[1729674983962,0.3608,66339.0,66338.0,0.245413]
[1729674984145,0.3608,66339.0,66338.0,0.595413]
[1729674984861,0.436211,66339.0,66338.0,0.35]
[1729674985556,0.436211,66339.0,66338.0,0.425413]
[1729674986060,0.075416,66335.0,66334.0,0.04510395]
[1729674986258,0.075418,66333.0,66332.0,0.04510395]
[1729674986462,0.075418,66333.0,66330.0,0.11772]
[1729674986463,0.075418,66333.0,66331.0,0.04510395]
[1729674986759,0.075418,66333.0,66332.0,0.35]
[1729674987061,0.075422,66330.0,66328.0,0.075424]
[1729674987453,0.17,66333.0,66326.0,0.04510395]
[1729674987454,0.245419,66333.0,66329.0,0.35]
[1729674987758,0.075419,66333.0,66331.0,0.06014018]
[1729674987964,0.075419,66333.0,66331.0,0.13556018]
[1729674988668,0.075419,66333.0,66331.0,0.07542]
[1729674988959,0.075419,66333.0,66331.0,0.06014018]
[1729674989165,0.075419,66333.0,66332.0,0.075419]
[1729674990360,0.2627,66338.0,66334.0,0.075416]
[1729674990661,0.075413,66338.0,66337.0,0.17]
[1729674990860,0.075413,66338.0,66336.0,0.075414]
[1729674991259,0.075413,66338.0,66336.0,0.13555418]
[1729674991562,0.075414,66337.0,66336.0,0.075414]
[1729674993369,0.3608,66339.0,66338.0,0.075413]
[1729674994274,0.075402,66347.0,66339.0,0.075411]
[1729674994456,0.075402,66347.0,66346.0,0.12052127]
[1729674994656,0.075402,66347.0,66346.0,0.075403]
[1729674995266,0.17,66350.0,66346.0,0.075403]
[1729674995669,0.17,66350.0,66347.0,0.075402]
[1729674996177,0.17,66350.0,66345.0,0.04511827]
[1729674996178,0.075403,66347.0,66345.0,0.04511827]
[1729674996364,0.075405,66345.0,66344.0,0.04511827]
[1729674996559,0.245405,66345.0,66343.0,0.04511827]
[1729674996861,0.075407,66344.0,66342.0,0.04511827]
[1729674997163,0.245401,66348.0,66343.0,0.075407]
[1729674997367,0.245401,66348.0,66343.0,0.04511827]
[1729674997570,0.17,66348.0,66343.0,0.04511827]
[1729674997762,0.17,66348.0,66342.0,0.12052627]
[1729674997763,0.075405,66345.0,66342.0,0.12052627]
[1729674997960,0.17,66348.0,66342.0,0.04511827]
[1729674998155,0.17,66348.0,66347.0,0.075402]
[1729674998357,0.63260528,66351.0,66343.0,0.04511827]
[1729674998563,0.63056528,66351.0,66344.0,0.17]
[1729674998772,0.63056528,66351.0,66345.0,0.075404]
[1729674998973,0.63056528,66351.0,66346.0,0.075403]
[1729674998974,0.075401,66348.0,66346.0,0.075403]
[1729675000259,0.075401,66348.0,66347.0,0.075402]
[1729675000760,0.61294,66351.0,66343.0,0.04511827]
[1729675001070,0.0754,66349.0,66348.0,0.075401]
[1729675002667,0.19240518,66349.0,66339.0,0.09214399]
[1729675002872,0.161617,66341.0,66340.0,0.07541]
[1729675003072,0.11700518,66341.0,66340.0,0.07541]
[1729675003265,0.27862218,66341.0,66340.0,0.07541]
[1729675004167,0.27862218,66341.0,66340.0,0.43621]
[1729675005260,0.24178079,66341.0,66340.0,0.68661]
[1729675005468,0.11700518,66341.0,66340.0,0.68661]
[1729675005872,0.11700518,66341.0,66340.0,1.13881]
[1729675006070,0.10071818,66353.0,66344.0,0.075406]
[1729675006381,0.3608,66365.0,66364.0,0.075383]
[1729675007671,0.3467,66365.0,66364.0,0.075383]
[1729675008867,0.436172,66374.0,66372.0,0.075374]
[1729675009278,0.436172,66374.0,66373.0,0.075373]
[1729675009683,0.3608,66374.0,66373.0,0.075373]
[1729675009876,0.5308,66379.0,66371.0,0.3608]
[1729675009877,0.075368,66378.0,66371.0,0.3608]
[1729675010077,0.5217,66376.0,66375.0,0.075371]
[1729675010272,0.597069,66376.0,66375.0,0.075371]
[1729675010478,0.6917,66376.0,66371.0,0.075375]
[1729675010784,0.075374,66372.0,66371.0,0.075375]
[1729675011382,0.17,66372.0,66359.0,0.5308]
[1729675011590,0.075388,66361.0,66360.0,0.075387]
[1729675011970,0.4379,66361.0,66355.0,0.436193]
[1729675012181,0.17,66356.0,66355.0,0.436193]
[1729675012483,0.075392,66356.0,66355.0,0.3608]
[1729675012870,0.17,66356.0,66350.0,0.00226036]
[1729675013185,0.01927595,66357.0,66350.0,0.00226036]
[1729675013379,0.075395,66354.0,66352.0,0.075396]
[1729675013577,0.075395,66354.0,66353.0,0.075395]
[1729675014894,0.075392,66357.0,66355.0,0.075392]